[Event "*** Titled Tuesday Blitz"]
[Site "Chess.com"]
[Date "2020.12.01"]
[Round "1"]
[White "sbouchet"]
[Black "gmcorrales"]
[Result "0-1"]
[WhiteElo "2393"]
[BlackElo "2794"]
[TimeControl "180+1"]
[EndTime "10:07:23 PST"]
[Termination "gmcorrales won by resignation"]

1. e4 {[%clk 0:03:00.5]} 1... c5 {[%clk 0:02:59.1]} 2. c3 {[%clk 0:02:59.9]}
2... Nf6 {[%clk 0:02:56.1]} 3. e5 {[%clk 0:02:59.8]} 3... Nd5 {[%clk 0:02:56.6]}
4. d4 {[%clk 0:03:00.3]} 4... cxd4 {[%clk 0:02:57.5]} 5. Nf3 {[%clk 0:02:59.8]}
5... Nc6 {[%clk 0:02:57.8]} 6. Bc4 {[%clk 0:02:59.6]} 6... Nb6 {[%clk
0:02:58.3]} 7. Bb3 {[%clk 0:03:00.1]} 7... g6 {[%clk 0:02:56.5]} 8. cxd4 {[%clk
0:02:51.5]} 8... Bg7 {[%clk 0:02:56.3]} 9. O-O {[%clk 0:02:48.5]} 9... O-O
{[%clk 0:02:56.4]} 10. Re1 {[%clk 0:02:39.2]} 10... d6 {[%clk 0:02:55]} 11. e6
{[%clk 0:02:14.6]} 11... fxe6 {[%clk 0:02:54.6]} 12. Nc3 {[%clk 0:02:14.4]}
12... Rxf3 {[%clk 0:02:32.8]} 13. Qxf3 {[%clk 0:01:55.4]} 13... Nxd4 {[%clk
0:02:32.7]} 14. Qd3 {[%clk 0:01:48.8]} 14... Nxb3 {[%clk 0:02:31.9]} 15. axb3
{[%clk 0:01:49.7]} 15... e5 {[%clk 0:02:08.8]} 16. Be3 {[%clk 0:01:47.3]} 16...
a6 {[%clk 0:01:37.1]} 17. Bxb6 {[%clk 0:01:13.5]} 17... Qxb6 {[%clk 0:01:36.8]}
18. Qc4+ {[%clk 0:01:14.1]} 18... e6 {[%clk 0:01:31]} 19. Rad1 {[%clk
0:01:09.2]} 19... d5 {[%clk 0:01:27.2]} 20. Qa4 {[%clk 0:01:07.5]} 20... Qc6
{[%clk 0:01:19.8]} 21. Qa3 {[%clk 0:01:00.8]} 21... Bd7 {[%clk 0:01:17.5]} 22.
Qe7 {[%clk 0:00:56.1]} 22... Re8 {[%clk 0:01:14.9]} 23. Qg5 {[%clk 0:00:56.1]}
23... e4 {[%clk 0:01:14]} 24. h4 {[%clk 0:00:54.5]} 24... Rf8 {[%clk 0:00:35]}
25. h5 {[%clk 0:00:48.2]} 25... gxh5 {[%clk 0:00:33.7]} 26. Qxh5 {[%clk
0:00:44.4]} 26... Qb6 {[%clk 0:00:29.6]} 27. Qh4 {[%clk 0:00:36]} 27... Be8
{[%clk 0:00:15.7]} 28. Ne2 {[%clk 0:00:30.4]} 28... Qxb3 {[%clk 0:00:12.3]} 29.
Nf4 {[%clk 0:00:30.3]} 29... Bf7 {[%clk 0:00:12.1]} 30. Nh5 {[%clk 0:00:29.8]}
30... Bxh5 {[%clk 0:00:11.5]} 31. Qxh5 {[%clk 0:00:28.8]} 31... Qxb2 {[%clk
0:00:12]} 32. Qh3 {[%clk 0:00:28.1]} 32... Qxf2+ {[%clk 0:00:10.7]} 33. Kh1
{[%clk 0:00:27.8]} 33... Qf5 {[%clk 0:00:10.3]} 34. Qg3 {[%clk 0:00:26]} 34...
Kh8 {[%clk 0:00:08.6]} 35. Rc1 {[%clk 0:00:20.6]} 35... Be5 {[%clk 0:00:07.5]}
36. Qh4 {[%clk 0:00:18.9]} 36... Rf6 {[%clk 0:00:05.2]} 37. Rc8+ {[%clk
0:00:17.2]} 37... Kg7 {[%clk 0:00:05.4]} 38. Rcc1 {[%clk 0:00:10]} 38... Rh6
{[%clk 0:00:05.1]} 0-1

[Event "*** Titled Tuesday Blitz"]
[Site "Chess.com"]
[Date "2020.12.01"]
[Round "1"]
[White "kirillshevchenko"]
[Black "pedromartinez91"]
[Result "1-0"]
[WhiteElo "2877"]
[BlackElo "2432"]
[TimeControl "180+1"]
[EndTime "10:07:26 PST"]
[Termination "kirillshevchenko won by checkmate"]

1. e4 {[%clk 0:02:59.2]} 1... e6 {[%clk 0:02:59.8]} 2. d4 {[%clk 0:02:57.4]}
2... d5 {[%clk 0:03:00]} 3. Bd3 {[%clk 0:02:58]} 3... dxe4 {[%clk 0:02:52.9]} 4.
Bxe4 {[%clk 0:02:58.9]} 4... Nf6 {[%clk 0:02:53.7]} 5. Bf3 {[%clk 0:02:59]} 5...
Nbd7 {[%clk 0:02:54.6]} 6. Ne2 {[%clk 0:02:50.1]} 6... Bd6 {[%clk 0:02:54.2]} 7.
c4 {[%clk 0:02:49.2]} 7... e5 {[%clk 0:02:41.5]} 8. Nbc3 {[%clk 0:02:36.7]} 8...
O-O {[%clk 0:02:33.4]} 9. O-O {[%clk 0:02:12.6]} 9... exd4 {[%clk 0:02:32.8]}
10. Nxd4 {[%clk 0:02:11.3]} 10... Ne5 {[%clk 0:02:33.1]} 11. Be2 {[%clk
0:02:04.2]} 11... Bg4 {[%clk 0:02:29.9]} 12. Bf4 {[%clk 0:01:45.2]} 12... Bxe2
{[%clk 0:02:22.1]} 13. Qxe2 {[%clk 0:01:45.3]} 13... Ng6 {[%clk 0:02:14.4]} 14.
Bxd6 {[%clk 0:01:40.8]} 14... Qxd6 {[%clk 0:02:15.3]} 15. Rad1 {[%clk
0:01:41.5]} 15... Rfe8 {[%clk 0:02:06.6]} 16. Qf3 {[%clk 0:01:39.4]} 16... Qb4
{[%clk 0:02:06.9]} 17. b3 {[%clk 0:01:34.4]} 17... c6 {[%clk 0:01:44.5]} 18. Nf5
{[%clk 0:01:28.4]} 18... Re6 {[%clk 0:01:36.8]} 19. Ne2 {[%clk 0:01:10.4]} 19...
Qa5 {[%clk 0:01:24.5]} 20. Ned4 {[%clk 0:01:03.2]} 20... Re5 {[%clk 0:01:06.5]}
21. Nd6 {[%clk 0:00:58.9]} 21... Qc7 {[%clk 0:01:04.1]} 22. N4f5 {[%clk
0:00:56.6]} 22... Ne8 {[%clk 0:00:52]} 23. g3 {[%clk 0:00:37.5]} 23... Nxd6
{[%clk 0:00:51.8]} 24. Nxd6 {[%clk 0:00:38.4]} 24... Rd8 {[%clk 0:00:39.8]} 25.
Nf5 {[%clk 0:00:36.9]} 25... Ree8 {[%clk 0:00:28.5]} 26. h4 {[%clk 0:00:34.7]}
26... Ne5 {[%clk 0:00:19.4]} 27. Qf4 {[%clk 0:00:34.7]} 27... g6 {[%clk
0:00:19.8]} 28. Rxd8 {[%clk 0:00:27.5]} 28... Rxd8 {[%clk 0:00:16.6]} 29. Nh6+
{[%clk 0:00:27.8]} 29... Kg7 {[%clk 0:00:16.9]} 30. Nxf7 {[%clk 0:00:28.3]}
30... Qxf7 {[%clk 0:00:15.5]} 31. Qxe5+ {[%clk 0:00:28.7]} 31... Kg8 {[%clk
0:00:14]} 32. Qe3 {[%clk 0:00:27]} 32... Re8 {[%clk 0:00:13.8]} 33. Qxa7 {[%clk
0:00:26.8]} 33... Re2 {[%clk 0:00:14.2]} 34. a4 {[%clk 0:00:26.6]} 34... h5
{[%clk 0:00:14]} 35. a5 {[%clk 0:00:26.1]} 35... Qf3 {[%clk 0:00:12.1]} 36. Qb8+
{[%clk 0:00:26.3]} 36... Kg7 {[%clk 0:00:09]} 37. Qxb7+ {[%clk 0:00:26.7]} 37...
Kh6 {[%clk 0:00:09.9]} 38. Qb8 {[%clk 0:00:25.7]} 38... Re4 {[%clk 0:00:04.5]}
39. Qh8# {[%clk 0:00:23.8]} 1-0

[Event "*** Titled Tuesday Blitz"]
[Site "Chess.com"]
[Date "2020.12.01"]
[Round "1"]
[White "Kaua18"]
[Black "Witik"]
[Result "1-0"]
[WhiteElo "2324"]
[BlackElo "2613"]
[TimeControl "180+1"]
[EndTime "10:07:26 PST"]
[Termination "Kaua18 won by checkmate"]

1. e4 {[%clk 0:03:00.8]} 1... c5 {[%clk 0:02:56.9]} 2. Nf3 {[%clk 0:03:01.1]}
2... Nc6 {[%clk 0:02:57]} 3. d4 {[%clk 0:03:00]} 3... cxd4 {[%clk 0:02:57.9]} 4.
Nxd4 {[%clk 0:03:00.9]} 4... g6 {[%clk 0:02:58.5]} 5. c4 {[%clk 0:03:00.8]} 5...
Nf6 {[%clk 0:02:58.3]} 6. Nc3 {[%clk 0:03:00.8]} 6... d6 {[%clk 0:02:58.5]} 7.
Be2 {[%clk 0:02:57.4]} 7... Nxd4 {[%clk 0:02:58.4]} 8. Qxd4 {[%clk 0:02:57.5]}
8... Bg7 {[%clk 0:02:58.8]} 9. O-O {[%clk 0:02:57.7]} 9... O-O {[%clk
0:02:58.9]} 10. Qd3 {[%clk 0:02:53.6]} 10... Nd7 {[%clk 0:02:37.6]} 11. Be3
{[%clk 0:02:51.9]} 11... Nc5 {[%clk 0:02:37.8]} 12. Qc2 {[%clk 0:02:50.7]} 12...
f5 {[%clk 0:02:37.7]} 13. Rad1 {[%clk 0:02:42.1]} 13... b6 {[%clk 0:02:17.9]}
14. b4 {[%clk 0:02:33.1]} 14... f4 {[%clk 0:01:34.2]} 15. Bxc5 {[%clk
0:02:20.3]} 15... bxc5 {[%clk 0:01:33.9]} 16. bxc5 {[%clk 0:02:21.2]} 16... f3
{[%clk 0:01:31.6]} 17. Bxf3 {[%clk 0:02:20.1]} 17... Rxf3 {[%clk 0:01:31.2]} 18.
gxf3 {[%clk 0:02:21]} 18... Bh3 {[%clk 0:01:31.3]} 19. Rfe1 {[%clk 0:02:05.9]}
19... e6 {[%clk 0:01:10.7]} 20. Ne2 {[%clk 0:02:03.4]} 20... Qg5+ {[%clk
0:01:08.5]} 21. Ng3 {[%clk 0:02:03.6]} 21... dxc5 {[%clk 0:00:47.7]} 22. Qc1
{[%clk 0:02:03.2]} 22... Qh4 {[%clk 0:00:43.2]} 23. e5 {[%clk 0:01:44.2]} 23...
Rf8 {[%clk 0:00:41.8]} 24. Re4 {[%clk 0:01:43.2]} 24... Qe7 {[%clk 0:00:37.2]}
25. Qc3 {[%clk 0:01:40.4]} 25... h5 {[%clk 0:00:34.9]} 26. Kh1 {[%clk
0:01:32.1]} 26... h4 {[%clk 0:00:32.8]} 27. Ne2 {[%clk 0:01:32.2]} 27... Bh6
{[%clk 0:00:22.9]} 28. Rg1 {[%clk 0:01:30.1]} 28... Kh7 {[%clk 0:00:22.8]} 29.
f4 {[%clk 0:01:17.5]} 29... Qb7 {[%clk 0:00:19.2]} 30. f3 {[%clk 0:00:59.6]}
30... Rd8 {[%clk 0:00:18.5]} 31. f5 {[%clk 0:00:37]} 31... Bxf5 {[%clk
0:00:12.9]} 32. Rxh4 {[%clk 0:00:36.1]} 32... Rd3 {[%clk 0:00:13.5]} 33. Qc1
{[%clk 0:00:25.9]} 33... Qxf3+ {[%clk 0:00:13.4]} 34. Rg2 {[%clk 0:00:25.8]}
34... g5 {[%clk 0:00:12]} 35. Rxh6+ {[%clk 0:00:18.6]} 35... Kg8 {[%clk
0:00:05]} 36. Qxg5+ {[%clk 0:00:18.6]} 36... Kf7 {[%clk 0:00:05.1]} 37. Qg7+
{[%clk 0:00:13.2]} 37... Ke8 {[%clk 0:00:05.2]} 38. Rh8# {[%clk 0:00:14.1]} 1-0

[Event "*** Titled Tuesday Blitz"]
[Site "Chess.com"]
[Date "2020.12.01"]
[Round "1"]
[White "Sacbutt"]
[Black "LuckSlayeer"]
[Result "0-1"]
[WhiteElo "2267"]
[BlackElo "2576"]
[TimeControl "180+1"]
[EndTime "10:07:26 PST"]
[Termination "LuckSlayeer won on time"]

1. d4 {[%clk 0:03:00.9]} 1... Nf6 {[%clk 0:02:57.8]} 2. c4 {[%clk 0:03:00.9]}
2... e6 {[%clk 0:02:56]} 3. Nf3 {[%clk 0:03:00.4]} 3... c5 {[%clk 0:02:55.8]} 4.
d5 {[%clk 0:03:00.1]} 4... d6 {[%clk 0:02:56.4]} 5. Nc3 {[%clk 0:03:00.2]} 5...
exd5 {[%clk 0:02:56.8]} 6. cxd5 {[%clk 0:03:00]} 6... g6 {[%clk 0:02:57.5]} 7.
e4 {[%clk 0:03:00]} 7... Bg7 {[%clk 0:02:57.7]} 8. Be2 {[%clk 0:03:00.2]} 8...
O-O {[%clk 0:02:56.2]} 9. O-O {[%clk 0:02:57.6]} 9... Bg4 {[%clk 0:02:53.5]} 10.
a4 {[%clk 0:02:54.2]} 10... Bxf3 {[%clk 0:02:51.2]} 11. Bxf3 {[%clk 0:02:53.8]}
11... a6 {[%clk 0:02:47.3]} 12. Qc2 {[%clk 0:02:49.7]} 12... Nbd7 {[%clk
0:02:46.8]} 13. Bf4 {[%clk 0:02:47.4]} 13... Qe7 {[%clk 0:02:46.2]} 14. Rfe1
{[%clk 0:02:46.2]} 14... h5 {[%clk 0:02:28.5]} 15. h3 {[%clk 0:02:43.4]} 15...
Nh7 {[%clk 0:02:23.1]} 16. Qd2 {[%clk 0:02:38.8]} 16... Qf6 {[%clk 0:01:56]} 17.
a5 {[%clk 0:02:17.1]} 17... g5 {[%clk 0:01:52.8]} 18. Bh2 {[%clk 0:02:11.6]}
18... Qg6 {[%clk 0:01:52.2]} 19. Ra3 {[%clk 0:01:49.9]} 19... Ne5 {[%clk
0:01:14.2]} 20. Be2 {[%clk 0:01:45.8]} 20... g4 {[%clk 0:01:14.6]} 21. hxg4
{[%clk 0:01:44.1]} 21... hxg4 {[%clk 0:01:12.2]} 22. Bf1 {[%clk 0:01:35.7]}
22... Ng5 {[%clk 0:01:07.5]} 23. Bxe5 {[%clk 0:01:27.1]} 23... Bxe5 {[%clk
0:01:05]} 24. Be2 {[%clk 0:00:59.4]} 24... Nf3+ {[%clk 0:00:47.8]} 25. Bxf3
{[%clk 0:00:54.6]} 25... gxf3 {[%clk 0:00:46.7]} 26. g3 {[%clk 0:00:53.1]} 26...
f5 {[%clk 0:00:23.8]} 27. exf5 {[%clk 0:00:45.3]} 27... Rxf5 {[%clk 0:00:19.3]}
28. Ne4 {[%clk 0:00:34.2]} 28... Qh5 {[%clk 0:00:13.7]} 29. Ree3 {[%clk
0:00:16.7]} 29... Raf8 {[%clk 0:00:11.3]} 30. Qd1 {[%clk 0:00:13.2]} 30... Bd4
{[%clk 0:00:08.6]} 31. Red3 {[%clk 0:00:10.5]} 31... Qg4 {[%clk 0:00:06.1]} 32.
Rab3 {[%clk 0:00:08]} 32... Qxe4 {[%clk 0:00:05]} 33. Rxd4 {[%clk 0:00:04.5]}
33... Qxd4 {[%clk 0:00:03.6]} 34. Qxd4 {[%clk 0:00:01.8]} 34... cxd4 {[%clk
0:00:04.5]} 0-1

[Event "*** Titled Tuesday Blitz"]
[Site "Chess.com"]
[Date "2020.12.01"]
[Round "1"]
[White "Semetey"]
[Black "ViktoriyaTarasova"]
[Result "1-0"]
[WhiteElo "2619"]
[BlackElo "2300"]
[TimeControl "180+1"]
[EndTime "10:07:27 PST"]
[Termination "Semetey won by resignation"]

1. Nf3 {[%clk 0:03:00.8]} 1... Nf6 {[%clk 0:02:59.5]} 2. e3 {[%clk 0:02:58.7]}
2... e6 {[%clk 0:02:59.2]} 3. c4 {[%clk 0:02:59.6]} 3... b6 {[%clk 0:02:59.1]}
4. Nc3 {[%clk 0:02:59.9]} 4... Bb7 {[%clk 0:02:59.2]} 5. b3 {[%clk 0:03:00.5]}
5... d5 {[%clk 0:02:58.6]} 6. Bb2 {[%clk 0:03:00.6]} 6... Nbd7 {[%clk
0:02:58.3]} 7. d4 {[%clk 0:03:00.2]} 7... Bd6 {[%clk 0:02:55.3]} 8. cxd5 {[%clk
0:02:56.8]} 8... exd5 {[%clk 0:02:53.9]} 9. Bd3 {[%clk 0:02:54.5]} 9... O-O
{[%clk 0:02:53.5]} 10. O-O {[%clk 0:02:54.5]} 10... a6 {[%clk 0:02:51.2]} 11.
Rc1 {[%clk 0:02:52.2]} 11... Qe7 {[%clk 0:02:50.5]} 12. Ne2 {[%clk 0:02:50.1]}
12... Rfe8 {[%clk 0:02:49.2]} 13. Ng3 {[%clk 0:02:43.1]} 13... g6 {[%clk
0:02:47.7]} 14. Rc2 {[%clk 0:02:41.1]} 14... Ne4 {[%clk 0:02:43.9]} 15. Qa1
{[%clk 0:02:39.8]} 15... f5 {[%clk 0:02:36.2]} 16. Ne5 {[%clk 0:02:29.6]} 16...
Rac8 {[%clk 0:01:57.8]} 17. f4 {[%clk 0:02:18.8]} 17... Nxg3 {[%clk 0:01:45.8]}
18. hxg3 {[%clk 0:02:18.5]} 18... Nf6 {[%clk 0:01:46.3]} 19. Qe1 {[%clk
0:01:40.2]} 19... Qe6 {[%clk 0:01:39]} 20. Qe2 {[%clk 0:01:38.5]} 20... Ne4
{[%clk 0:01:27]} 21. Kh2 {[%clk 0:01:35.1]} 21... Ra8 {[%clk 0:01:20.5]} 22.
Bxe4 {[%clk 0:01:25.3]} 22... fxe4 {[%clk 0:01:09.3]} 23. g4 {[%clk 0:01:24.9]}
23... Rf8 {[%clk 0:01:06.2]} 24. Rh1 {[%clk 0:01:13.6]} 24... Bxe5 {[%clk
0:00:57.4]} 25. dxe5 {[%clk 0:01:13.2]} 25... Rf7 {[%clk 0:00:56.7]} 26. Kg3
{[%clk 0:01:04.4]} 26... c5 {[%clk 0:00:54]} 27. Rh6 {[%clk 0:00:59.7]} 27...
Qe7 {[%clk 0:00:20.2]} 28. Rc1 {[%clk 0:00:40.6]} 28... Raf8 {[%clk 0:00:19.8]}
29. Rch1 {[%clk 0:00:35.9]} 29... d4 {[%clk 0:00:13.7]} 30. exd4 {[%clk
0:00:35.5]} 30... Rxf4 {[%clk 0:00:12.9]} 31. Rxh7 {[%clk 0:00:33.8]} 31... Qxh7
{[%clk 0:00:12.8]} 32. Rxh7 {[%clk 0:00:33.1]} 32... Kxh7 {[%clk 0:00:13.2]} 33.
Bc1 {[%clk 0:00:22.4]} 33... e3 {[%clk 0:00:10.9]} 34. Qxe3 {[%clk 0:00:20.1]}
34... Re4 {[%clk 0:00:09.7]} 35. Qh6+ {[%clk 0:00:19.6]} 35... Kg8 {[%clk
0:00:09.4]} 36. Qxg6+ {[%clk 0:00:19.7]} 36... Kh8 {[%clk 0:00:09.8]} 37. Bg5
{[%clk 0:00:14.8]} 37... Bc8 {[%clk 0:00:06.5]} 38. Bf6+ {[%clk 0:00:14.4]}
38... Rxf6 {[%clk 0:00:05.9]} 39. Qxf6+ {[%clk 0:00:14.6]} 39... Kg8 {[%clk
0:00:06.5]} 40. Qg6+ {[%clk 0:00:15]} 1-0

[Event "*** Titled Tuesday Blitz"]
[Site "Chess.com"]
[Date "2020.12.01"]
[Round "1"]
[White "ChristopherYoo"]
[Black "Alomaterapia"]
[Result "1-0"]
[WhiteElo "2872"]
[BlackElo "2430"]
[TimeControl "180+1"]
[EndTime "10:07:28 PST"]
[Termination "ChristopherYoo won by checkmate"]

1. e4 {[%clk 0:02:16.5]} 1... e5 {[%clk 0:02:57.5]} 2. Nf3 {[%clk 0:02:15.6]}
2... Nc6 {[%clk 0:02:57.9]} 3. Bb5 {[%clk 0:02:13.1]} 3... a6 {[%clk 0:02:55.8]}
4. Ba4 {[%clk 0:02:08.7]} 4... Nf6 {[%clk 0:02:56.1]} 5. d4 {[%clk 0:02:08.2]}
5... exd4 {[%clk 0:02:56.8]} 6. O-O {[%clk 0:02:06.9]} 6... Be7 {[%clk
0:02:49.9]} 7. e5 {[%clk 0:02:03.8]} 7... Ne4 {[%clk 0:02:40.5]} 8. Nxd4 {[%clk
0:02:02.8]} 8... O-O {[%clk 0:02:37.3]} 9. Re1 {[%clk 0:01:58.7]} 9... Nc5
{[%clk 0:02:37]} 10. Bxc6 {[%clk 0:01:50]} 10... dxc6 {[%clk 0:02:37.1]} 11. Nc3
{[%clk 0:01:48.7]} 11... Ne6 {[%clk 0:02:33.3]} 12. Nf5 {[%clk 0:01:47]} 12...
Bc5 {[%clk 0:01:58.1]} 13. Qg4 {[%clk 0:01:33.3]} 13... g6 {[%clk 0:01:57.4]}
14. Ne4 {[%clk 0:01:29.2]} 14... Nd4 {[%clk 0:01:22.9]} 15. Nf6+ {[%clk
0:01:03.9]} 15... Qxf6 {[%clk 0:01:05]} 16. exf6 {[%clk 0:00:54.8]} 16... Bxf5
{[%clk 0:01:04.5]} 17. Qh4 {[%clk 0:00:54.5]} 17... Rfe8 {[%clk 0:01:00.9]} 18.
Be3 {[%clk 0:00:51.3]} 18... Re4 {[%clk 0:00:43.9]} 19. Qg3 {[%clk 0:00:15.9]}
19... Bd6 {[%clk 0:00:33.5]} 20. Qg5 {[%clk 0:00:14.9]} 20... Ne6 {[%clk
0:00:17.6]} 21. Qh6 {[%clk 0:00:08.1]} 21... Bf8 {[%clk 0:00:17.9]} 22. f3
{[%clk 0:00:08.5]} 22... Rc4 {[%clk 0:00:11.3]} 23. b3 {[%clk 0:00:05.1]} 23...
Rxc2 {[%clk 0:00:09.9]} 24. Qh4 {[%clk 0:00:04.5]} 24... Rd8 {[%clk 0:00:07.9]}
25. Rac1 {[%clk 0:00:04.1]} 25... Rxc1 {[%clk 0:00:07.7]} 26. Bxc1 {[%clk
0:00:03.8]} 26... h5 {[%clk 0:00:08]} 27. g4 {[%clk 0:00:03.4]} 27... Rd4 {[%clk
0:00:06.5]} 28. h3 {[%clk 0:00:03.3]} 28... Bc5 {[%clk 0:00:06]} 29. Be3 {[%clk
0:00:03.4]} 29... hxg4 {[%clk 0:00:05]} 30. hxg4 {[%clk 0:00:03.3]} 30... g5
{[%clk 0:00:03.4]} 31. Qh6 {[%clk 0:00:03]} 31... Bg6 {[%clk 0:00:03.2]} 32.
Bxd4 {[%clk 0:00:03]} 32... Bxd4+ {[%clk 0:00:03.7]} 33. Kh2 {[%clk 0:00:03.3]}
33... Bxf6 {[%clk 0:00:01.8]} 34. Rxe6 {[%clk 0:00:03.4]} 34... Bg7 {[%clk
0:00:01.5]} 35. Re8+ {[%clk 0:00:02.1]} 35... Bf8 {[%clk 0:00:02]} 36. Rxf8#
{[%clk 0:00:03]} 1-0

[Event "*** Titled Tuesday Blitz"]
[Site "Chess.com"]
[Date "2020.12.01"]
[Round "1"]
[White "serhanberat_ozdemir"]
[Black "1977Ivan"]
[Result "0-1"]
[WhiteElo "2340"]
[BlackElo "2679"]
[TimeControl "180+1"]
[EndTime "10:07:31 PST"]
[Termination "1977Ivan won on time"]

1. e4 {[%clk 0:03:00.2]} 1... c6 {[%clk 0:02:58.7]} 2. d4 {[%clk 0:03:00]} 2...
d5 {[%clk 0:02:58.5]} 3. exd5 {[%clk 0:02:59.6]} 3... cxd5 {[%clk 0:02:58.1]} 4.
c4 {[%clk 0:03:00.5]} 4... Nf6 {[%clk 0:02:56.7]} 5. Nc3 {[%clk 0:03:00.1]} 5...
g6 {[%clk 0:02:57.1]} 6. cxd5 {[%clk 0:02:41.2]} 6... Nxd5 {[%clk 0:02:58]} 7.
Bc4 {[%clk 0:02:41.5]} 7... Nb6 {[%clk 0:02:57.8]} 8. Bb3 {[%clk 0:02:36.1]}
8... Bg7 {[%clk 0:02:58.3]} 9. Nf3 {[%clk 0:02:14.2]} 9... O-O {[%clk
0:02:57.4]} 10. h3 {[%clk 0:02:14.2]} 10... Nc6 {[%clk 0:02:56.7]} 11. Be3
{[%clk 0:02:14.2]} 11... Na5 {[%clk 0:02:53]} 12. Bc2 {[%clk 0:01:57.4]} 12...
Nac4 {[%clk 0:02:52.2]} 13. Rb1 {[%clk 0:01:43.3]} 13... Bd7 {[%clk 0:02:47.9]}
14. O-O {[%clk 0:01:43]} 14... Rc8 {[%clk 0:02:47.3]} 15. Bb3 {[%clk 0:01:39.4]}
15... Bc6 {[%clk 0:02:34.7]} 16. Qe2 {[%clk 0:01:06.1]} 16... Bxf3 {[%clk
0:02:05.5]} 17. Qxf3 {[%clk 0:01:07]} 17... Qd7 {[%clk 0:01:48.5]} 18. Rfd1
{[%clk 0:01:04]} 18... Nxb2 {[%clk 0:01:45]} 19. Rxb2 {[%clk 0:00:54.1]} 19...
Rxc3 {[%clk 0:01:45.3]} 20. Rbd2 {[%clk 0:00:36.5]} 20... Nc4 {[%clk 0:01:24]}
21. Rd3 {[%clk 0:00:23.5]} 21... Rxd3 {[%clk 0:01:21.8]} 22. Rxd3 {[%clk
0:00:24]} 22... b5 {[%clk 0:01:20]} 23. Rd1 {[%clk 0:00:20.5]} 23... Rc8 {[%clk
0:01:16.7]} 24. d5 {[%clk 0:00:17.7]} 24... a5 {[%clk 0:01:09.6]} 25. Bd4 {[%clk
0:00:16.9]} 25... Bxd4 {[%clk 0:00:57.5]} 26. Rxd4 {[%clk 0:00:17.8]} 26... Nd6
{[%clk 0:00:50.2]} 27. h4 {[%clk 0:00:04.9]} 27... a4 {[%clk 0:00:49]} 28. Bd1
{[%clk 0:00:04.9]} 28... Nf5 {[%clk 0:00:45.3]} 29. Rf4 {[%clk 0:00:04.7]} 29...
Rc1 {[%clk 0:00:41.6]} 30. Kh2 {[%clk 0:00:04.3]} 30... Qd6 {[%clk 0:00:37]} 31.
g3 {[%clk 0:00:04.6]} 31... e5 {[%clk 0:00:26.9]} 32. Rg4 {[%clk 0:00:02]} 32...
Nd4 {[%clk 0:00:24.4]} 33. Rxd4 {[%clk 0:00:01.6]} 33... exd4 {[%clk 0:00:24]}
34. Be2 {[%clk 0:00:02.5]} 34... Rc5 {[%clk 0:00:19]} 35. Qe4 {[%clk 0:00:01.4]}
35... Rxd5 {[%clk 0:00:15.6]} 36. Qe8+ {[%clk 0:00:01.6]} 36... Kg7 {[%clk
0:00:15.9]} 37. h5 {[%clk 0:00:01.7]} 37... gxh5 {[%clk 0:00:16.1]} 0-1

[Event "*** Titled Tuesday Blitz"]
[Site "Chess.com"]
[Date "2020.12.01"]
[Round "1"]
[White "Trickov"]
[Black "GianmarcoVaR"]
[Result "1-0"]
[WhiteElo "2351"]
[BlackElo "2655"]
[TimeControl "180+1"]
[EndTime "10:07:31 PST"]
[Termination "Trickov won on time"]

1. d4 {[%clk 0:02:54.8]} 1... Nf6 {[%clk 0:02:56]} 2. Nf3 {[%clk 0:02:54.2]}
2... g6 {[%clk 0:02:55.5]} 3. g3 {[%clk 0:02:52]} 3... Bg7 {[%clk 0:02:55.9]} 4.
Bg2 {[%clk 0:02:52.2]} 4... O-O {[%clk 0:02:56.1]} 5. O-O {[%clk 0:02:52]} 5...
b6 {[%clk 0:02:56.5]} 6. Ne5 {[%clk 0:02:49.8]} 6... c6 {[%clk 0:02:51.6]} 7. c4
{[%clk 0:02:46.7]} 7... Bb7 {[%clk 0:02:51.3]} 8. Nc3 {[%clk 0:02:40.4]} 8... d6
{[%clk 0:02:51.4]} 9. Nd3 {[%clk 0:02:33.1]} 9... Nbd7 {[%clk 0:02:51.5]} 10. e4
{[%clk 0:02:30.9]} 10... e5 {[%clk 0:02:51.1]} 11. d5 {[%clk 0:02:28.4]} 11...
Rc8 {[%clk 0:02:44.2]} 12. Be3 {[%clk 0:02:25.1]} 12... a6 {[%clk 0:02:38.5]}
13. dxc6 {[%clk 0:02:19.7]} 13... Bxc6 {[%clk 0:02:38.5]} 14. Rc1 {[%clk
0:02:16.8]} 14... b5 {[%clk 0:02:33.6]} 15. cxb5 {[%clk 0:02:13.4]} 15... axb5
{[%clk 0:02:34.5]} 16. Qb3 {[%clk 0:02:05.6]} 16... Qa5 {[%clk 0:02:26]} 17. Nb4
{[%clk 0:01:57.4]} 17... Bb7 {[%clk 0:02:25]} 18. Nbd5 {[%clk 0:01:45.5]} 18...
Nxd5 {[%clk 0:01:57.4]} 19. Nxd5 {[%clk 0:01:44.8]} 19... Bf6 {[%clk 0:01:49.2]}
20. Bh3 {[%clk 0:01:22]} 20... Bxd5 {[%clk 0:01:41.3]} 21. Qxd5 {[%clk
0:01:21.3]} 21... Rxc1 {[%clk 0:01:38]} 22. Rxc1 {[%clk 0:01:20.3]} 22... Nc5
{[%clk 0:01:25.6]} 23. a3 {[%clk 0:01:01.2]} 23... Qa4 {[%clk 0:01:15.8]} 24.
Bxc5 {[%clk 0:00:45.7]} 24... dxc5 {[%clk 0:01:15.3]} 25. Rxc5 {[%clk
0:00:45.6]} 25... Rd8 {[%clk 0:01:13]} 26. Rc8 {[%clk 0:00:45.5]} 26... Rxc8
{[%clk 0:01:12.3]} 27. Bxc8 {[%clk 0:00:44]} 27... Qc2 {[%clk 0:01:09.1]} 28.
Ba6 {[%clk 0:00:37.5]} 28... Be7 {[%clk 0:01:05.1]} 29. b4 {[%clk 0:00:33.1]}
29... Qc1+ {[%clk 0:00:58.8]} 30. Kg2 {[%clk 0:00:32.5]} 30... Qxa3 {[%clk
0:00:59.7]} 31. Bxb5 {[%clk 0:00:32]} 31... Bf6 {[%clk 0:00:51]} 32. Bc4 {[%clk
0:00:31.1]} 32... Qa7 {[%clk 0:00:51.2]} 33. b5 {[%clk 0:00:29.5]} 33... Bg5
{[%clk 0:00:40.8]} 34. b6 {[%clk 0:00:25.8]} 34... Qb8 {[%clk 0:00:39.2]} 35.
Qxf7+ {[%clk 0:00:23.2]} 35... Kh8 {[%clk 0:00:39.7]} 36. b7 {[%clk 0:00:22.3]}
36... h5 {[%clk 0:00:33.6]} 37. Qg8+ {[%clk 0:00:18.1]} 37... Qxg8 {[%clk
0:00:32.8]} 38. Bxg8 {[%clk 0:00:17]} 1-0